Cogmind - Beta 14 @@@ ROGUE MODE // 2025.01.13 @ 19:09:03 Player: puppuppit Result: Destroyed by C-17 Slicer with Blade Saw Performance ------------- Evolutions (2) 1000 Regions Visited (6) 1200 Robots Destroyed (136) 680 Value Destroyed (4970) 4970 Prototype IDs (36) 720 Alien Tech Used (0) 0 Bonus (1844) 1844 TOTAL SCORE: 10414 Bonus ------- High Alert Combat Kills 1082 Follower Combat Kills 278 Entered Garrisons 200 Aligned with FarCom 300 Friendly Fire -16 Cogmind --------- Core Integrity 0/550 Matter 265/300 Energy 25/100 System Corruption 7% Temperature Cool (0) Movement Walking (120) Location -8/Garrison Parts ------- > --- POWER (1) -------- (None) > --- PROPULSION (4) --- Aluminum Leg Aluminum Leg Aluminum Leg > --- UTILITY (4) ------ Improved Heat Sink Medium Storage Unit Advanced Targeting Computer Target Analyzer > --- WEAPON (2) ------- Beam Rifle Particle Gun > --- INVENTORY (10) --- High-capacity Matter Pod (200) Active Sensor Suite Authchip [R/Combat] Authchip [R/Combat] Authchip [R/Combat] Heavy Assault Rifle Advanced EMP Blaster Field Lobotomy Kit (4) Peak State ------------ > --- POWER ------------ Light Nuclear Core > --- PROPULSION ------- Gravmag System Gravmag System Gravmag System Gravmag System > --- UTILITY ---------- Improved Heat Sink Medium Storage Unit Machine Analyzer Hardened Light Armor Plating > --- WEAPON ----------- Gauss Rifle Field Lobotomy Kit > --- INVENTORY -------- Hover Unit Improved Hover Unit High-capacity Matter Pod Gauss Rifle Gauss Rifle Gauss Rifle Bore Cannon Grenade Launcher [Rating: 44] Favorites ----------- Power Light Ion Engine Engine Light Ion Engine Power Core Light Nuclear Core Propulsion Armored Wheel Leg Aluminum Leg Wheel Armored Wheel Hover Unit Hover Unit Flight Unit Improved Flight Unit Utility Medium Storage Unit Device Improved Terrain Scanner Storage Medium Storage Unit Processor Targeting Computer Hackware Hacking Suite Protection Hardened Light Armor Plating Weapon Gauss Rifle Energy Gun EM Pulse Gun Ballistic Gun Gauss Rifle Ballistic Cannon Bore Cannon Launcher Advanced EMP Blaster Special Weapon Field Lobotomy Kit Build | -11 -10 -10 -10 -9 -8 -8 ------- Run | Yrd Mat Min Exi Min Mat Gar Slots Evolved 4 | . . . . . 4 . Power . | . . . . . . . Propulsion 2 | . . . . . 2 . Utility 2 | . . . . . 2 . Weapon . | . . . . . . . Parts Attached 111 | 8 13 2 4 2 58 24 Power 14 | 1 2 1 . . 7 3 Engine 8 | 1 2 1 . . 3 1 Core 6 | . . . . . 4 2 Reactor . | . . . . . . . Propulsion 42 | 3 2 1 1 1 28 6 Treads . | . . . . . . . Leg 3 | . . . . . . 3 Wheel 17 | 3 2 1 1 . 7 3 Hover 21 | . . . . 1 20 . Flight 1 | . . . . . 1 . Utility 19 | 2 3 . 1 1 8 4 Device 4 | 1 . . . . 1 2 Storage 5 | 1 1 . 1 . 2 . Processor 6 | . 1 . . 1 2 2 Hackware 3 | . 1 . . . 2 . Protection 1 | . . . . . 1 . Artifact . | . . . . . . . Weapon 36 | 2 6 . 2 . 15 11 Energy Gun 6 | 2 . . . . . 4 Energy Cannon . | . . . . . . . Ballistic Gun 20 | . 5 . 2 . 11 2 Ballistic Cannon 1 | . . . . . . 1 Launcher 8 | . 1 . . . 3 4 Special Weapon 1 | . . . . . 1 . Impact Weapon . | . . . . . . . Slashing Weapon . | . . . . . . . Piercing Weapon . | . . . . . . . Special Melee Weapon . | . . . . . . . Unidentified Prototypes 3 | . . . . . 3 . Parts Lost 31 | . 1 . . 1 15 14 Power 7 | . 1 . . . 2 4 Propulsion 17 | . . . . . 10 7 Utility 2 | . . . . 1 1 . Weapon 5 | . . . . . 2 3 Highest Loss Streak 4 | . 1 . . 1 4 4 To Critical Strikes . | . . . . . . . Average Slot Usage (%) 94 | . 100 100 100 98 93 86 Engine 8 | . 14 14 14 14 3 5 Core 2 | . . . . . 5 2 Leg 1 | . . . . . . 4 Wheel 20 | . 28 28 28 24 8 22 Hover 8 | . . . . 2 25 . Device 1 | . 5 . . . 1 . Storage 11 | . 14 14 14 14 9 9 Processor 12 | . 4 14 14 12 13 17 Hackware 5 | . 3 . . . 8 9 Energy Gun 1 | . 4 . . . . 2 Ballistic Gun 19 | . 23 28 28 28 16 11 Peak Build Rating 44 | 9 14 13 14 15 44 35 Average Rating 22 | 5 12 12 13 13 30 28 On Entrance 13 | . 9 12 13 14 15 33 Naked Turns . | . . . . . . . Heaviest Build 29 | 13 19 19 19 19 29 29 Greatest Support 46 | 26 24 24 24 24 42 46 Greatest Overweight (x) 6 | . . . . 1 1 6 Average Overweight (x) . | . . . . . . . Largest Inventory Capacity 10 | 8 10 10 10 10 10 10 Average Capacity 9 | 7 8 10 10 10 10 10 Most Carried 10 | 1 9 10 10 10 10 10 Average Carried 8 | . 7 9 9 9 8 9 Final Capacity 10 | 8 10 10 10 10 10 10 Final Carried 10 | 1 9 10 10 10 9 10 Class Distribution -------------------- 55% | Mutant 38% | Scavenger-Mutant 6% | Hacker-Mutant Dominant Class ---------------- Mutant | -10/Materials Mutant | -10/Mines Mutant | -10/Exiles Mutant | -9/Mines Scavenger-Mutant | -8/Materials Scavenger-Mutant | -8/Garrison Resources | -11 -10 -10 -10 -9 -8 -8 ----------- Run | Yrd Mat Min Exi Min Mat Gar Matter Collected 4061 | 227 670 174 50 191 1821 928 Remotely . | . . . . . . . Salvage Created 5478 | 101 978 317 . 353 2681 1048 Parts 309 | 8 69 17 . 28 141 46 Haulers Intercepted 7 | . 2 . . . 5 . Recyclers Shooed 4 | . 3 . . . 1 . Parts Field Recycled . | . . . . . . . Retrieved Matter . | . . . . . . . Parts Self-Destructed . | . . . . . . . Prevented . | . . . . . . . Kills | -11 -10 -10 -10 -9 -8 -8 ------- Run | Yrd Mat Min Exi Min Mat Gar Combat Hostiles Destroyed 92 | . 20 1 . 10 40 21 Guns 77 | . 17 1 . 10 36 13 Cannons 7 | . . . . . . 7 AOE 8 | . 3 . . . 4 1 Classes Destroyed 18 | 2 7 2 . 1 4 2 Worker 10 | . 3 . . . 7 . Builder 5 | . . 2 . . 3 . Tunneler 6 | 1 1 1 . 2 1 . Hauler 7 | . 2 . . . 5 . Recycler 9 | 1 2 3 . 1 2 . Mechanic 1 | . 1 . . . . . Operator 3 | . 2 . . . 1 . Watcher 7 | . 3 . . . 4 . Swarmer 19 | . 6 . . 6 . 7 Cutter 2 | . . . . . 2 . Grunt 51 | . 14 . . 3 27 7 Brawler 5 | . . . . 1 2 2 Duelist 1 | . . . . . 1 . Protector 1 | . . . . . 1 . Sentry 9 | . . . . . 7 2 Hunter 1 | . . . . . . 1 Programmer 2 | . . . . . . 2 Assembled 1 | . . 1 . . . . Best Kill Streak 10 | 2 8 4 . 5 10 5 Combat Bots Only 6 | . 5 1 . 3 6 5 Max Kills in Single Turn 2 | 1 2 2 . 2 2 2 Gunslinging 1 | . 1 . . 1 1 . Exploded 2 | . 1 . . . 2 1 Melee . | . . . . . . . Uniques/NPCs Destroyed . | . . . . . . . Combat | -11 -10 -10 -10 -9 -8 -8 -------- Run | Yrd Mat Min Exi Min Mat Gar Hostile Shots Fired 350 | . 69 3 . 24 159 95 Missed 108 | . 15 1 . 6 56 30 Damage Taken 3850 | . 575 100 . 168 1850 1157 Core 713 | . 131 . . 32 349 201 Absorbed by Shields 9 | . . . . . . 9 Regen/Repaired (Parts) 226 | . . . . . 226 . Core Remaining (%) 67 | 100 . . . 34 . . Volleys Fired 376 | 3 70 17 . 22 170 94 Largest 2 | 2 2 2 . 2 2 2 Hottest 130 | 80 80 46 . 46 58 130 Shots Fired 727 | 6 140 34 . 44 331 172 Gun 675 | 6 138 34 . 44 322 131 Cannon 30 | . . . . . . 30 Launcher 21 | . 2 . . . 8 11 Special 1 | . . . . . 1 . Kinetic 667 | . 122 34 . 44 322 145 Thermal 16 | . . . . . . 16 Explosive 10 | . 2 . . . 8 . Electromagnetic 33 | 6 16 . . . . 11 Robot Hit Streak 17 | 2 7 5 . 5 17 14 Robot Miss Streak 5 | 2 5 4 . 4 4 4 Penetration Max 1 | . . . . . 1 1 Secondary Targets 12 | . 3 . . 3 6 . Max Gunslinging Chain 1 | . 1 . . 1 1 . Shots Hit Robots 489 | 3 101 26 . 29 223 107 Core Hits 259 | 2 59 20 . 17 107 54 Critical Kills 9 | . . . . . 3 6 Critical Parts Destroyed 19 | . 1 1 . . 11 6 Critical Strikes 31 | . 1 1 . . 15 14 Burn 1 | . . . . . . 1 Destroy 30 | . 1 1 . . 15 13 Melee Attacks . | . . . . . . . Impact . | . . . . . . . Slashing . | . . . . . . . Piercing . | . . . . . . . Sneak Attacks . | . . . . . . . Combat Hostiles . | . . . . . . . Follow-up Attacks . | . . . . . . . Damage Inflicted 10595 | 43 1756 432 . 418 5698 2248 Guns 9378 | 43 1484 432 . 418 5255 1746 Cannons 458 | . . . . . . 458 Explosions 759 | . 272 . . . 443 44 Melee . | . . . . . . . Ramming . | . . . . . . . Kinetic 9372 | . 1306 432 . 418 5255 1961 Thermal 318 | . 75 . . . . 243 Explosive 640 | . 197 . . . 443 . Electromagnetic 265 | 43 178 . . . . 44 Impact . | . . . . . . . Slashing . | . . . . . . . Piercing . | . . . . . . . Highest Corruption 7 | . . . . . . 7 Average Corruption 2 | . . . . . . 2 Corruption Purged . | . . . . . . . Corruption Blocked . | . . . . . . . Effects 9 | . . . . . . 9 Message Errors 3 | . . . . . . 3 Matter Fused 2 | . . . . . . 2 Heat Flow Errors 1 | . . . . . . 1 Energy Discharges 1 | . . . . . . 1 Data Loss (minor) 1 | . . . . . . 1 Misfires 1 | . . . . . . 1 Overload Shots . | . . . . . . . Overflow Damage 29 | . 8 . . . . 21 Projectiles 21 | . . . . . . 21 Explosions 8 | . 8 . . . . . Melee . | . . . . . . . Knockbacks 2 | . . . . . . 2 Impact . | . . . . . . . Kinetic 2 | . . . . . . 2 Secondary . | . . . . . . . Self-Inflicted Damage 93 | . 38 . . . 39 16 Shots 3 | . 1 . . . 1 1 Rammed . | . . . . . . . Targets Rammed . | . . . . . . . Kicked . | . . . . . . . Crushed . | . . . . . . . Highest Temperature 306 | 36 86 10 . 10 37 306 Average Temperature 36 | 17 21 7 . 4 11 69 Received Heat Transfer 1329 | . 204 . . 27 864 234 Siege Activations . | . . . . . . . Robots Corrupted . | . . . . . . . Combat Hostiles . | . . . . . . . Parts Fried 3 | . 3 . . . . . Impact Corruptions . | . . . . . . . Robots Melted . | . . . . . . . Combat Hostiles . | . . . . . . . Parts Melted 2 | . . . . . . 2 Heat Transferred 705 | . 150 . . . . 555 Parts Sabotaged . | . . . . . . . Parts Stolen . | . . . . . . . Parts Stripped . | . . . . . . . Power Chain Reactions 2 | . 2 . . . . . Alert | -11 -10 -10 -10 -9 -8 -8 ------- Run | Yrd Mat Min Exi Min Mat Gar Peak Influence 1637 | 10 418 175 . 321 1082 1637 Initial 703 | . 6 125 . . 124 703 Average 582 | 3 234 118 . 159 655 1099 Maximum Alert Level 5 | . 2 . . 1 3 5 Low Security (%) 27 | 100 34 100 . 69 9 . Level 1 18 | . 64 . . 30 8 . Level 2 11 | . 1 . . . 31 . Level 3 30 | . . . . . 49 50 Level 4 12 | . . . . . . 49 Level 5 . | . . . . . . . High Security . | . . . . . . . Max Security . | . . . . . . . Squads Dispatched 14 | . 5 . . . 9 . Investigation 7 | . 4 . . . 3 . Extermination . | . . . . . . . Reinforcement 3 | . 1 . . . 2 . Assault 2 | . . . . . 2 . Garrison 2 | . . . . . 2 . Intercept . | . . . . . . . Searches Triggered . | . . . . . . . Construction Impeded . | . . . . . . . Haulers Reinforced . | . . . . . . . Active Scanning Responses . | . . . . . . . Cargo Convoy Interrupts . | . . . . . . . Stealth | -11 -10 -10 -10 -9 -8 -8 --------- Run | Yrd Mat Min Exi Min Mat Gar Distress Signals 7 | . . . . . 7 . Communications Jammed . | . . . . . . . Distress Signals . | . . . . . . . Times Spotted 129 | . 27 6 . 11 61 24 Peak Tracking Total 19 | . 4 19 . 3 7 5 Tactical Retreats 4 | . . . . . 3 1 Traps | -11 -10 -10 -10 -9 -8 -8 ------- Run | Yrd Mat Min Exi Min Mat Gar Traps Triggered 12 | . 3 . . . 1 8 Indirectly 2 | . 2 . . . . . Trap Hack Attempts . | . . . . . . . Triggered . | . . . . . . . Disarmed . | . . . . . . . Reprogrammed 4 | . 4 . . . . . Reused . | . . . . . . . Traps Extracted . | . . . . . . . Installed . | . . . . . . . Triggered . | . . . . . . . Machines | -11 -10 -10 -10 -9 -8 -8 ---------- Run | Yrd Mat Min Exi Min Mat Gar Machines Disabled 20 | . 2 . . 1 5 12 Max in Single Turn 4 | . 1 . . . 1 4 Garrison Relay 6 | . . . . . . 6 Phase Generator 1 | . . . . . . 1 Machines Repaired . | . . . . . . . Machines Dismantled . | . . . . . . . Machines Sabotaged . | . . . . . . . Overloaded Fab Kills . | . . . . . . . Hacking | -11 -10 -10 -10 -9 -8 -8 --------- Run | Yrd Mat Min Exi Min Mat Gar Machines Accessed 28 | . 7 . 5 . 14 2 Terminals 18 | . 7 . . . 9 2 Fabricators . | . . . . . . . Repair Stations 2 | . . . . . 2 . Recycling Units 1 | . . . . . 1 . Scanalyzers 1 | . . . . . 1 . Garrison Access 1 | . . . . . 1 . Total Hacks 121 | . 26 . 50 . 41 4 Successful 86 | . 12 . 50 . 23 1 Failed 35 | . 14 . . . 18 3 Catastrophic 12 | . 4 . . . 5 3 Database Lockouts . | . . . . . . . Manual 30 | . 15 . 1 . 14 . Terminals 54 | . 26 . . . 24 4 Fabricators . | . . . . . . . Repair Stations 7 | . . . . . 7 . Recycling Units 1 | . . . . . 1 . Scanalyzers 8 | . . . . . 8 . Garrison Access 1 | . . . . . 1 . Terminal Hacks 72 | . 12 . 50 . 9 1 Record 49 | . . . 49 . . . Robot Schematic 3 | . 2 . . . 1 . Robot Analysis 10 | . 4 . . . 6 . Prototype ID Bank 6 | . 4 . . . 2 . Branch Access Points 1 | . 1 . . . . . Reprogram Traps 1 | . 1 . . . . . Garrison Registry 1 | . . . . . . 1 Derelict Proto ID Bank 1 | . . . 1 . . . Fabricator Hacks . | . . . . . . . Repair Station Hacks 6 | . . . . . 6 . Scan Component 3 | . . . . . 3 . Repair 3 | . . . . . 3 . Recycling Unit Hacks 1 | . . . . . 1 . Retrieve Components 1 | . . . . . 1 . Scanalyzer 6 | . . . . . 6 . Insert Component 3 | . . . . . 3 . Analyze 3 | . . . . . 3 . Garrison Access Hacks 1 | . . . . . 1 . Unlock Access 1 | . . . . . 1 . Unauthorized Hacks . | . . . . . . . Terminals . | . . . . . . . Fabricators . | . . . . . . . Repair Stations . | . . . . . . . Recycling Units . | . . . . . . . Scanalyzers . | . . . . . . . Garrison Access . | . . . . . . . Data Cores Recovered . | . . . . . . . Used . | . . . . . . . Hacking Detections 20 | . 7 . . . 11 2 Full Trace Events 13 | . 6 . . . 5 2 Feedback Events . | . . . . . . . Feedback Blocked . | . . . . . . . Robot Schematics Acquired 3 | . 2 . . . 1 . Robots Built . | . . . . . . . Authchips . | . . . . . . . Time . | . . . . . . . Total Robot Build Rating . | . . . . . . . Part Schematics Acquired 3 | . . . . . 3 . Parts Built . | . . . . . . . Authchips . | . . . . . . . Time . | . . . . . . . Total Part Build Rating . | . . . . . . . Parts Repaired 3 | . . . . . 3 . Time 114 | . . . . . 114 . Parts Recycled . | . . . . . . . Recycled Matter . | . . . . . . . Retrieved Matter . | . . . . . . . Retrieved Components 3 | . . . . . 3 . Parts Scanalyzed 3 | . . . . . 3 . Part Schematics Acquired 3 | . . . . . 3 . Parts Damaged . | . . . . . . . Bothacking | -11 -10 -10 -10 -9 -8 -8 ------------ Run | Yrd Mat Min Exi Min Mat Gar Used RIF Installer . | . . . . . . . Robots Hacked . | . . . . . . . Non-combat . | . . . . . . . Combat . | . . . . . . . Robot Hacks Applied . | . . . . . . . Relay Couplers Released 29 | . . . . . . 29 Machine Destruction 29 | . . . . . . 29 Fabnet Peak Effective % . | . . . . . . . Robots Rewired . | . . . . . . . Allies Hacked . | . . . . . . . Hacks Repelled . | . . . . . . . Allies | -11 -10 -10 -10 -9 -8 -8 -------- Run | Yrd Mat Min Exi Min Mat Gar Total Allies 6 | . . 5 . . 1 . Largest Group 5 | . . 5 5 3 3 . Highest-Rated Group 90 | . . 78 78 40 90 . Highest-Rated Ally 90 | . . 31 31 16 90 . Total Orders . | . . . . . . . Ally Attacks 74 | . . 14 . 22 38 . Total Damage 1592 | . . 217 . 162 1213 . Kills 10 | . . . . 1 9 . Allies Corrupted . | . . . . . . . Allies Melted . | . . . . . . . Field Lobotomies 1 | . . . . . 1 . Intel | -11 -10 -10 -10 -9 -8 -8 ------- Run | Yrd Mat Min Exi Min Mat Gar Robot Analysis Total 10 | . 4 . . . 6 . Derelict Logs Recovered 2 | . . 1 . 1 . . Drone Launches . | . . . . . . . Drone Recoveries . | . . . . . . . Exploration | -11 -10 -10 -10 -9 -8 -8 ------------- Run | Yrd Mat Min Exi Min Mat Gar Turns Passed 4987 | 50 892 463 424 397 1591 1170 Spaces Moved 4066 | 34 714 430 455 335 1319 779 Core 3 | 2 . . . . . 1 Treads . | . . . . . . . Legs 130 | . . . . . . 130 Wheels 2847 | 32 714 430 455 335 233 648 Hover 1086 | . . . . . 1086 . Flight . | . . . . . . . Fastest Speed 45 | 50 80 90 90 90 45 80 Average Speed 79 | 85 88 90 90 93 56 94 Slowest Speed 350 | 90 90 90 90 105 120 350 Overloaded Moves . | . . . . . . . Propulsion Burnouts . | . . . . . . . Robots Hopped . | . . . . . . . Cave-ins Triggered . | . . . . . . . Exploration Rate (%) 69 | 4 93 83 90 73 83 63 Regions Visited 6 Branch Regions 3 Pre-discovered Areas 1 | . . . 1 . . . Known Exits Taken 2 | . 1 . . . 1 . Unknown Exits Taken 4 | 1 . 1 1 1 . . Scrap Searched 3 | . . 2 . 1 . . Spaces Dug . | . . . . . . . Terrain Destroyed 136 | . 9 . . . 49 78 Melee . | . . . . . . . Projectile 10 | . . . . . 4 6 AOE 126 | . 9 . . . 45 72 Terrain Rammed . | . . . . . . . Walls Destroyed . | . . . . . . . Machines Disabled . | . . . . . . . Actions | -11 -10 -10 -10 -9 -8 -8 --------- Run | Yrd Mat Min Exi Min Mat Gar Total 5074 | 44 838 473 471 376 1832 1040 Wait 408 | . 18 19 4 15 250 102 Move 4060 | 33 713 429 454 334 1318 779 Hop . | . . . . . . . Pick Up 41 | . 12 3 4 2 14 6 Fast Attach 39 | 7 5 . . . 15 12 Attach 21 | . . . . 2 17 2 Detach 8 | . 1 . . . 5 2 Swap 51 | 1 8 2 4 . 26 10 Drop 42 | . 11 3 5 1 17 5 Fire 376 | 3 70 17 . 22 170 94 Melee . | . . . . . . . Ram . | . . . . . . . Kick . | . . . . . . . Crush . | . . . . . . . Escape Stasis 28 | . . . . . . 28 Rewire . | . . . . . . . Trap . | . . . . . . . Miscellaneous . | . . . . . . . Route ------- -11/Scrapyard -10/Materials (discovered 4 exits: [*Mat x3] / *Min) -10/Mines (discovered 3 exits: [*Mat x2] / *Exi) -10/Exiles -9/Mines -8/Materials (discovered 4 exits: *Fac x3 / Gar) -8/Garrison (discovered 3 exits: [*Mat x3]) History --------- Turn | Location | Event 7 | -11/Scrapyard | Discovered new exit (range 16) 51 | -11/Scrapyard | Entered Materials 70 | -10/Materials | Discovered new exit (range 7) 156 | -10/Materials | Discovered new exit (range 10) 300 | -10/Materials | Build established: Mutant 463 | -10/Materials | Discovered new exit (range 5) 500 | -10/Materials | Discovered new exit (range 14) 731 | -10/Materials | Identified exit to Mines 848 | -10/Materials | Core integrity fell below 50% 943 | -10/Materials | Entered Mines 944 | -10/Mines | Assisted by bots powering up and referring to "LRC-V3" 952 | -10/Mines | Met a Derelict bent on vengeance 1018 | -10/Mines | A weapon hastily lodged in a ceiling crevice suddenly fell to the ground 1078 | -10/Mines | Discovered new exit (range 15) 1105 | -10/Mines | Discovered new exit (range 9) 1152 | -10/Mines | Learned 8 Materials zone layouts 1175 | -10/Mines | Assembled infested the area 1203 | -10/Mines | Met 8R-AWN 1382 | -10/Mines | Discovered new exit (range 5) 1406 | -10/Mines | Entered Exiles 1406 | -10/Exiles | Accompanied by 5 allies 1436 | -10/Exiles | Led the pair of lost Derelicts to a safe place 1437 | -10/Exiles | Welcomed by 8R-AWN 1450 | -10/Exiles | Met EX-HEX 1501 | -10/Exiles | Met EX-DEC 1520 | -10/Exiles | Learned location of Zion (-6) 1556 | -10/Exiles | Visited The Gauntlet 1662 | -10/Exiles | Met EX-BIN 1676 | -10/Exiles | Aligned with FarCom system 1677 | -10/Exiles | Given EX-Vault access code 1715 | -10/Exiles | Opened EX-Vault 1720 | -10/Exiles | Found Field Lobotomy Kit 1737 | -10/Exiles | Warned to stay clear of 0b10 Research branches 1814 | -10/Exiles | Discovered new exit (range 14) 1830 | -10/Exiles | Left Exiles lab with Field Lobotomy Kit 1830 | -10/Exiles | Entered Mines 1830 | -9/Mines | Accompanied by 3 allies 1836 | -9/Mines | Learned Materials machine intel 1973 | -9/Mines | Discovered new exit (range 14) 2138 | -9/Mines | Found DCF Scrap (12 items) 2227 | -9/Mines | Entered Materials 2227 | -8/Materials | Accompanied by 3 allies 2227 | -8/Materials | Evolved 4 slots: Propulsion x2, Utility x2 2228 | -8/Materials | Identified exit to Factory 2229 | -8/Materials | Loaded intel: 51 machine locations 2487 | -8/Materials | Assimilated H-61 Shepherd with FLK Orb 2549 | -8/Materials | Lost 3 parts (1p1n1u) 2782 | -8/Materials | Discovered exit to Factory (range 11) 2940 | -8/Materials | Repaired Gauss Rifle 2983 | -8/Materials | Lost 3 parts (3n) 3004 | -8/Materials | Repaired Gauss Rifle 3027 | -8/Materials | First assault squad dispatched 3236 | -8/Materials | Build established: Scavenger-Mutant 3367 | -8/Materials | Repaired Hover Unit 3455 | -8/Materials | Lost 4 parts (4n) 3540 | -8/Materials | Found Prototype Device 3637 | -8/Materials | Garrison activated, responded to threat 3670 | -8/Materials | Core integrity fell below 50% 3815 | -8/Materials | Identified exit to Garrison 3818 | -8/Materials | Entered Garrison 3845 | -8/Garrison | Garrison Relay disabled 3856 | -8/Garrison | Triggered checkpoint 4056 | -8/Garrison | Triggered checkpoint 4152 | -8/Garrison | Garrison Relay disabled 4203 | -8/Garrison | Discovered new exit (range 9) 4282 | -8/Garrison | Triggered checkpoint 4290 | -8/Garrison | Triggered checkpoint 4369 | -8/Garrison | Phase Generator disabled 4379 | -8/Garrison | Discovered new exit (range 12) 4484 | -8/Garrison | Triggered checkpoint 4595 | -8/Garrison | Core integrity fell below 20% 4715 | -8/Garrison | Lost 4 parts (2n2w) 4851 | -8/Garrison | Discovered new exit (range 50) 4851 | -8/Garrison | Discovered new exit (range 41) 4851 | -8/Garrison | Discovered new exit (range 70) 4988 | -8/Garrison | Destroyed by C-17 Slicer with Blade Saw Last Messages --------------- Downloaded security status. 04851_ ALERT: Suspicious activity at Terminal G002. Transmitting hostile system tracking data. 04889_ Melted Gravmag System. 04889_ P-60 Hacker suffers critical hit (Burn). 04892_ P-60 Hacker heat damages Gravmag System. 04892_ Imp. Heat Sink melted. 04892_ P-60 Hacker destroyed. 04896_ Wheel destroyed. 04901_ Discarded Targeting Computer. 04908_ YXJ5ANS7IB0H0> EVPEDJFGWLCQJGW| 04916_ Y-45 Defender destroyed. 04921_ Acquired 65 matter. 04927_ Acquired Hvy. Assault Rifle. 04930_ Dropped Particle Gun. 04934_ Acquired 10 matter. 04951_ Dropped Imp. Heat Sink. 04981_ Lgt. Nuclear Core destroyed. 04981_ System corrupted by crushing effect (+2). 04981_ Knocked back. Map ----- +----------------------------------------------------+ | ?????????????????????????????????#=="#???????????? | | ?????????????????????????????????#!!"#???????????? | | ?????????????????????????????????# !"#???????????? | | ?????????????????????????????????#!#[#???????????? | | ?????????????????????????####????#%###???????????? | | ?????????????????????????#""#????#!#?????????????? | | ?????????????????????????# T#????#*#?????????????? | | ?????????????????????????# "#????# #?????????????? | | ?????????????????????????# ##??### #?????????????? | | ?????????????#####???????# ##### #?????????????? | | ?????????????# #???? ??# #?????????????? | | ?????????????# ######### ##### #?????????????? | | ?????????????# ^^#???### #?????????????? | | ?????????????# ^^#?????# #?????????????? | | ?????????????###### ##### ####### #?????????????? | | ??????????????????# #???# #?????????????? | | ??????????????????# #???# ####!####?????????##### | | ??##############??# #???# #??# #????????????# | | ??#######"""""###?# #???# #??# #????????????# | | ??## "###?# #???# #??# #????????????# ## | | ??### #" ##?# ##### #### ######???????# #? | | ??#"" """""# ##### #???????# ## | | ??#"" ######## #### #### #???????# # | | ??#"" ######## #??# #??# #?####### ## | | ??#"" !! p c #??# #??# #?# ## #? | | ??#"" """""# ###########@ #??# #?## ### ## ## | | ??### #" ##???????# #### ### # | | ??## "###???????# / | | ??#######"""""###???????# ^ | | ??##############????????########### ## ## # | | ????????????????????????????????### ## ## # | | ????????????????????????????????# ^ " | | ?######?????????????????????????# ^^ " | | ## # ####????????????????????### ^ " | | ##???????????????????# " ^^ " | | # # ####????????????????# ### ## ## # | | #???????????###### ### ## ## # | | #???????????# # | | ###???????????#%= | | ###############% ####### # | | =/* |= # ???# ##""""## # | | ################ #?????# ## ## # | | #????????#"T"## ####### ## ##### # | | #????????#" [ # ?# # | | #????????###### ####### ####???# # | | ## ##?????????????#/=#?????# #??????# # | | ## # ##??????????????# *#?????# #??????# | | #### #####################! ####### #??????# # | | ??# * #??????# T | | ??# #??????# # | +----------------------------------------------------+ Best States ------------- Heat Dissipation 45 Energy Generation 18 Energy Capacity 160 Matter Stores 496 Matter Capacity 500 Sight Range 16 Terrain Scan Range 16 Terrain Scan Density 10 Armor Coverage 150 Evasion (%) 56 Targeting Accuracy 13 Target Analysis 5 Offensive Hacking 20 Authchip Count 3 Item Schematics ----------------- Gravmag System | -8/Materials | Scanalyzed Gauss Rifle | -8/Materials | Scanalyzed Bore Cannon | -8/Materials | Scanalyzed Robot Schematics ------------------ M-13 Machinist | -10/Materials | Hacked O-16 Technician | -10/Materials | Hacked H-55 Commando | -8/Materials | Hacked Fabricated ------------ Nothing Alien Tech Used ----------------- None Achievements -------------- None Challenges ------------ None Game ------ Seed DataChromaticLoader Manual? 0 Play Time 00:57:32 Cumulative 24.3 hours Start 2025.01.13 @ 18:09:03 End 2025.01.13 @ 19:09:03 Sessions 1 Manual Loads 0 Difficulty Rogue Special Mode None Game No. 17 Rogue 17 Adventurer 0 Explorer 0 Win Type - Total 0 Types 0/0/0/0/0/0/0/0/0 Lore% 17 Gallery% 24 Achievement% 32 Wizard Run 0 Options --------- Layout 0 ASCII 0 Keyboard 1 Movement Arrows Keybinds 0 Fullscreen 1 Font 12/Proggy Map View 83x54 Zoom Use 0% Tactical HUD 1 Map Filters NONE Filters NONE Steam 0 RUN: a3f23158-b0d4-4105-837b-e0a9cf32464b